[Event "Titled Tuesday Blitz October 18 Late 2022"]
[White "Rosenberg, Evan S"]
[Black "Roque Sola, Jose Luis"]
[WhiteFideId "2019299"]
[BlackFideId "5120390"]
[WhiteElo "2351"]
[BlackElo "2117"]
[Result "1-0"]
[Round "07"]
[TimeControl "180+1"]
[Date "2022.10.19"]
[WhiteClock "0:00:25"]
[BlackClock "0:00:10"]

1. e4 {[%clk 0:03:00]}  e6 {[%clk 0:02:58]} 2. d4 {[%clk 0:03:00]}  d5 {[%clk 0:02:55]} 3. e5 {[%clk 0:03:01]}  c5 {[%clk 0:02:54]} 4. c3 {[%clk 0:03:01]}  Nc6 {[%clk 0:02:54]} 5. Nf3 {[%clk 0:03:02]}  Nge7 {[%clk 0:02:52]} 6. Bd3 {[%clk 0:02:55]}  cxd4 {[%clk 0:02:51]} 7. O-O {[%clk 0:02:54]}  dxc3 {[%clk 0:02:50]} 8. bxc3 {[%clk 0:02:49]}  Ng6 {[%clk 0:02:49]} 9. Re1 {[%clk 0:02:48]}  Qc7 {[%clk 0:02:45]} 10. Qe2 {[%clk 0:02:38]}  Bc5 {[%clk 0:02:29]} 11. h4 {[%clk 0:02:37]}  Qb6 {[%clk 0:02:06]} 12. h5 {[%clk 0:02:24]}  Nge7 {[%clk 0:01:58]} 13. h6 {[%clk 0:02:20]}  g6 {[%clk 0:01:57]} 14. Nbd2 {[%clk 0:02:02]}  Nf5 {[%clk 0:01:55]} 15. Bxf5 {[%clk 0:01:58]}  gxf5 {[%clk 0:01:43]} 16. Nb3 {[%clk 0:01:59]}  Be7 {[%clk 0:01:41]} 17. Rb1 {[%clk 0:01:54]}  Qd8 {[%clk 0:01:40]} 18. Nfd4 {[%clk 0:01:45]}  Rg8 {[%clk 0:01:36]} 19. Bf4 {[%clk 0:01:32]}  Rg4 {[%clk 0:01:29]} 20. g3 {[%clk 0:01:29]}  Bg5 {[%clk 0:01:26]} 21. Bd2 {[%clk 0:00:54]}  Bxd2 {[%clk 0:01:17]} 22. Qxd2 {[%clk 0:00:54]}  Qg5 {[%clk 0:01:04]} 23. Qxg5 {[%clk 0:00:53]}  Rxg5 {[%clk 0:01:05]} 24. Nb5 {[%clk 0:00:53]}  Kd7 {[%clk 0:01:02]} 25. Kg2 {[%clk 0:00:49]}  Rg6 {[%clk 0:00:57]} 26. Nd6 {[%clk 0:00:41]}  Ke7 {[%clk 0:00:40]} 27. Nd4 {[%clk 0:00:33]}  Nxd4 {[%clk 0:00:31]} 28. cxd4 {[%clk 0:00:33]}  Bd7 {[%clk 0:00:25]} 29. Rxb7 {[%clk 0:00:32]}  Rxh6 {[%clk 0:00:18]} 30. Rc1 {[%clk 0:00:32]}  Rd8 {[%clk 0:00:18]} 31. Rcc7 {[%clk 0:00:32]}  Rg6 {[%clk 0:00:17]} 32. Rxa7 {[%clk 0:00:31]}  f4 {[%clk 0:00:17]} 33. Nxf7 {[%clk 0:00:26]}  Kxf7 {[%clk 0:00:16]} 34. Rxd7+ {[%clk 0:00:26]}  Rxd7 {[%clk 0:00:17]} 35. Rxd7+ {[%clk 0:00:26]}  Kg8 {[%clk 0:00:17]} 36. a4 {[%clk 0:00:26]}  fxg3 {[%clk 0:00:17]} 37. fxg3 {[%clk 0:00:26]}  h5 {[%clk 0:00:18]} 38. Kf3 {[%clk 0:00:25]}  Rg4 {[%clk 0:00:16]} 39. a5 {[%clk 0:00:25]}  Rxd4 {[%clk 0:00:16]} 40. a6 {[%clk 0:00:25]}  Ra4 {[%clk 0:00:16]} 41. a7 {[%clk 0:00:26]}  Ra3+ {[%clk 0:00:13]} 42. Kg2 {[%clk 0:00:25]}  Ra2+ {[%clk 0:00:13]} 43. Kh3 {[%clk 0:00:25]}  Ra1 {[%clk 0:00:11]} 44. Rd8+ {[%clk 0:00:25]}  Kf7 {[%clk 0:00:10]} 45. a8=Q {[%clk 0:00:26]}  Rxa8 {[%clk 0:00:10]} 46. Rxa8 {[%clk 0:00:25]}  Kg6 {[%clk 0:00:10]} 47. Rf8 {[%clk 0:00:24]}  d4 {[%clk 0:00:10]} 48. Rf6+ {[%clk 0:00:24]}  Kg5 {[%clk 0:00:10]} 49. Rxe6 {[%clk 0:00:25]} 1-0


[Site "https://www.chess.com"]

[Event "Titled Tuesday Blitz October 18 Late 2022"]
[White "Rustemov, Alexander"]
[Black "Mortazavi, Ali"]
[WhiteFideId "4119002"]
[BlackFideId "401323"]
[WhiteElo "2755"]
[BlackElo "2339"]
[Result "1-0"]
[Round "07"]
[TimeControl "180+1"]
[Date "2022.10.18"]
[WhiteClock "0:01:07"]
[BlackClock "0:00:31"]

1. d4 {[%clk 0:03:00]}  Nf6 {[%clk 0:02:59]} 2. c4 {[%clk 0:03:00]}  g6 {[%clk 0:02:59]} 3. Nf3 {[%clk 0:03:00]}  Bg7 {[%clk 0:03:00]} 4. g3 {[%clk 0:03:01]}  O-O {[%clk 0:03:01]} 5. Bg2 {[%clk 0:03:01]}  d6 {[%clk 0:03:02]} 6. Nc3 {[%clk 0:03:01]}  Nbd7 {[%clk 0:03:03]} 7. O-O {[%clk 0:03:02]}  e5 {[%clk 0:03:04]} 8. e4 {[%clk 0:03:02]}  c6 {[%clk 0:03:04]} 9. h3 {[%clk 0:03:02]}  Qa5 {[%clk 0:03:05]} 10. Re1 {[%clk 0:02:56]}  exd4 {[%clk 0:03:03]} 11. Nxd4 {[%clk 0:02:55]}  Ne5 {[%clk 0:03:04]} 12. Bf1 {[%clk 0:02:51]}  Qb6 {[%clk 0:03:04]} 13. Kg2 {[%clk 0:02:43]}  c5 {[%clk 0:03:04]} 14. Nc2 {[%clk 0:02:39]}  Be6 {[%clk 0:02:39]} 15. Ne3 {[%clk 0:02:39]}  Rad8 {[%clk 0:02:34]} 16. b3 {[%clk 0:02:37]}  Qc6 {[%clk 0:02:25]} 17. f3 {[%clk 0:02:30]}  Qc8 {[%clk 0:02:15]} 18. Kh2 {[%clk 0:02:25]}  Nh5 {[%clk 0:02:09]} 19. Bb2 {[%clk 0:02:20]}  f5 {[%clk 0:02:03]} 20. exf5 {[%clk 0:02:20]}  Bxf5 {[%clk 0:02:03]} 21. f4 {[%clk 0:02:16]}  Nc6 {[%clk 0:01:42]} 22. Bg2 {[%clk 0:02:14]}  Rfe8 {[%clk 0:01:38]} 23. Qd2 {[%clk 0:02:13]}  Nd4 {[%clk 0:01:35]} 24. Rad1 {[%clk 0:02:06]}  Bxh3 {[%clk 0:01:06]} 25. Bxh3 {[%clk 0:02:01]}  Nf3+ {[%clk 0:01:05]} 26. Kg2 {[%clk 0:02:02]}  Qxh3+ {[%clk 0:00:58]} 27. Kxh3 {[%clk 0:02:01]}  Nxd2 {[%clk 0:00:58]} 28. Rxd2 {[%clk 0:02:00]}  Bd4 {[%clk 0:00:53]} 29. Ncd5 {[%clk 0:01:56]}  Re4 {[%clk 0:00:52]} 30. Bxd4 {[%clk 0:01:49]}  cxd4 {[%clk 0:00:52]} 31. Nc2 {[%clk 0:01:50]}  Rde8 {[%clk 0:00:47]} 32. Rxe4 {[%clk 0:01:48]}  Rxe4 {[%clk 0:00:48]} 33. Nxd4 {[%clk 0:01:44]}  Kg7 {[%clk 0:00:49]} 34. Kg2 {[%clk 0:01:42]}  Re1 {[%clk 0:00:47]} 35. Re2 {[%clk 0:01:38]}  Rd1 {[%clk 0:00:47]} 36. Nb5 {[%clk 0:01:36]}  Nf6 {[%clk 0:00:43]} 37. Nxf6 {[%clk 0:01:27]}  Kxf6 {[%clk 0:00:43]} 38. Nxa7 {[%clk 0:01:28]}  h5 {[%clk 0:00:42]} 39. Nb5 {[%clk 0:01:26]}  Kf5 {[%clk 0:00:43]} 40. Nc3 {[%clk 0:01:24]}  Rd3 {[%clk 0:00:40]} 41. Nd5 {[%clk 0:01:22]}  h4 {[%clk 0:00:35]} 42. gxh4 {[%clk 0:01:17]}  Kg4 {[%clk 0:00:35]} 43. Kf2 {[%clk 0:01:11]}  Rh3 {[%clk 0:00:31]} 44. Ke1 {[%clk 0:01:09]}  Kf3 {[%clk 0:00:31]} 45. Re3+ {[%clk 0:01:07]} 1-0


[Site "https://www.chess.com"]

[Event "Titled Tuesday Blitz October 18 Late 2022"]
[White "Sargsyan, Anna M."]
[Black "Pham, Khoi"]
[WhiteFideId "13308130"]
[BlackFideId "1054988"]
[WhiteElo "2284"]
[BlackElo "2463"]
[Result "1-0"]
[Round "07"]
[TimeControl "180+1"]
[Date "2022.10.19"]
[WhiteClock "0:00:08"]
[BlackClock "0:00:08"]

1. d4 {[%clk 0:03:00]}  f5 {[%clk 0:03:00]} 2. c4 {[%clk 0:02:59]}  Nf6 {[%clk 0:02:59]} 3. Nc3 {[%clk 0:03:00]}  g6 {[%clk 0:03:00]} 4. Bg5 {[%clk 0:03:00]}  Bg7 {[%clk 0:02:59]} 5. Qc2 {[%clk 0:03:00]}  Nc6 {[%clk 0:02:57]} 6. O-O-O {[%clk 0:02:59]}  O-O {[%clk 0:02:55]} 7. Nf3 {[%clk 0:03:00]}  d6 {[%clk 0:02:51]} 8. Bxf6 {[%clk 0:03:00]}  Bxf6 {[%clk 0:02:51]} 9. e4 {[%clk 0:03:00]}  Bg7 {[%clk 0:02:43]} 10. a3 {[%clk 0:02:58]}  fxe4 {[%clk 0:02:40]} 11. Nxe4 {[%clk 0:02:59]}  Bg4 {[%clk 0:02:37]} 12. d5 {[%clk 0:02:45]}  Bxf3 {[%clk 0:02:35]} 13. gxf3 {[%clk 0:02:44]}  Ne5 {[%clk 0:02:34]} 14. Be2 {[%clk 0:02:41]}  Nxf3 {[%clk 0:02:31]} 15. Bxf3 {[%clk 0:02:41]}  Rxf3 {[%clk 0:02:32]} 16. Kb1 {[%clk 0:02:41]}  Rf5 {[%clk 0:02:25]} 17. h4 {[%clk 0:02:40]}  b5 {[%clk 0:02:17]} 18. cxb5 {[%clk 0:02:34]}  Rb8 {[%clk 0:02:16]} 19. a4 {[%clk 0:02:27]}  a6 {[%clk 0:02:12]} 20. Ng5 {[%clk 0:02:22]}  axb5 {[%clk 0:01:51]} 21. Ne6 {[%clk 0:02:22]}  Qd7 {[%clk 0:01:50]} 22. a5 {[%clk 0:02:18]}  c5 {[%clk 0:01:38]} 23. h5 {[%clk 0:02:12]}  b4 {[%clk 0:01:16]} 24. hxg6 {[%clk 0:02:07]}  hxg6 {[%clk 0:01:17]} 25. Rdg1 {[%clk 0:00:52]}  b3 {[%clk 0:01:08]} 26. Qxf5 {[%clk 0:00:43]}  Qa4 {[%clk 0:00:59]} 27. Qxg6 {[%clk 0:00:39]}  Qa2+ {[%clk 0:00:54]} 28. Kc1 {[%clk 0:00:39]}  Qxb2+ {[%clk 0:00:53]} 29. Kd1 {[%clk 0:00:40]}  Qa1+ {[%clk 0:00:42]} 30. Ke2 {[%clk 0:00:34]}  Qb2+ {[%clk 0:00:11]} 31. Ke3 {[%clk 0:00:34]}  Qe5+ {[%clk 0:00:11]} 32. Qe4 {[%clk 0:00:34]}  Qc3+ {[%clk 0:00:11]} 33. Qd3 {[%clk 0:00:31]}  Qe5+ {[%clk 0:00:10]} 34. Kf3 {[%clk 0:00:27]}  Qf6+ {[%clk 0:00:06]} 35. Ke2 {[%clk 0:00:27]}  Qe5+ {[%clk 0:00:06]} 36. Kf1 {[%clk 0:00:28]}  Qa1+ {[%clk 0:00:05]} 37. Kg2 {[%clk 0:00:27]}  Qf6 {[%clk 0:00:05]} 38. Qh7+ {[%clk 0:00:27]}  Kf7 {[%clk 0:00:05]} 39. Qxg7+ {[%clk 0:00:26]}  Qxg7+ {[%clk 0:00:05]} 40. Nxg7 {[%clk 0:00:27]}  Kxg7 {[%clk 0:00:04]} 41. Kf3+ {[%clk 0:00:28]}  Kf6 {[%clk 0:00:04]} 42. Rh6+ {[%clk 0:00:22]}  Ke5 {[%clk 0:00:04]} 43. Re6+ {[%clk 0:00:22]}  Kd4 {[%clk 0:00:04]} 44. a6 {[%clk 0:00:20]}  b2 {[%clk 0:00:03]} 45. a7 {[%clk 0:00:21]}  Ra8 {[%clk 0:00:03]} 46. Rxe7 {[%clk 0:00:21]}  c4 {[%clk 0:00:03]} 47. Rb7 {[%clk 0:00:19]}  c3 {[%clk 0:00:02]} 48. Rd1+ {[%clk 0:00:18]}  Kc4 {[%clk 0:00:03]} 49. Rc7+ {[%clk 0:00:17]}  Kb3 {[%clk 0:00:02]} 50. Ke3 {[%clk 0:00:14]}  c2 {[%clk 0:00:02]} 51. Rd3+ {[%clk 0:00:14]}  Ka4 {[%clk 0:00:02]} 52. Rc4+ {[%clk 0:00:13]}  Kb5 {[%clk 0:00:02]} 53. Rxc2 {[%clk 0:00:09]}  b1=Q {[%clk 0:00:03]} 54. Rcc3 {[%clk 0:00:09]}  Qb2 {[%clk 0:00:03]} 55. Rb3+ {[%clk 0:00:09]}  Qxb3 {[%clk 0:00:03]} 56. Rxb3+ {[%clk 0:00:10]}  Kc4 {[%clk 0:00:04]} 57. Rb7 {[%clk 0:00:10]}  Kxd5 {[%clk 0:00:04]} 58. Rc7 {[%clk 0:00:10]}  Ke5 {[%clk 0:00:04]} 59. f4+ {[%clk 0:00:10]}  Ke6 {[%clk 0:00:04]} 60. Ke4 {[%clk 0:00:10]}  d5+ {[%clk 0:00:04]} 61. Kd4 {[%clk 0:00:10]}  Kd6 {[%clk 0:00:04]} 62. Rh7 {[%clk 0:00:10]}  Rf8 {[%clk 0:00:03]} 63. f5 {[%clk 0:00:10]}  Kc6 {[%clk 0:00:03]} 64. Ke5 {[%clk 0:00:09]}  d4 {[%clk 0:00:03]} 65. Kxd4 {[%clk 0:00:08]}  Kb6 {[%clk 0:00:03]} 66. Ke5 {[%clk 0:00:08]}  Kc5 {[%clk 0:00:03]} 67. f6 {[%clk 0:00:08]}  Kc4 {[%clk 0:00:04]} 68. Ke6 {[%clk 0:00:08]}  Kd3 {[%clk 0:00:05]} 69. Rf7 {[%clk 0:00:08]}  Ke2 {[%clk 0:00:06]} 70. Rxf8 {[%clk 0:00:08]}  Kf1 {[%clk 0:00:06]} 71. a8=Q {[%clk 0:00:09]}  Kf2 {[%clk 0:00:07]} 72. Qa3 {[%clk 0:00:08]}  Kg2 {[%clk 0:00:08]} 1-0


[Site "https://www.chess.com"]

[Event "Titled Tuesday Blitz October 18 Late 2022"]
[White "Storey, Charles H"]
[Black "Janaszak, Dawid"]
[WhiteFideId "406686"]
[BlackFideId "1119206"]
[WhiteElo "2252"]
[BlackElo "2226"]
[Result "1/2-1/2"]
[Round "07"]
[TimeControl "180+1"]
[Date "2022.10.19"]
[WhiteClock "0:00:17"]
[BlackClock "0:01:31"]

1. c4 {[%clk 0:03:00]}  g6 {[%clk 0:02:59]} 2. Nf3 {[%clk 0:02:59]}  Bg7 {[%clk 0:02:59]} 3. d4 {[%clk 0:02:59]}  Nf6 {[%clk 0:02:57]} 4. Nc3 {[%clk 0:02:59]}  O-O {[%clk 0:02:57]} 5. e4 {[%clk 0:02:59]}  d6 {[%clk 0:02:57]} 6. Be2 {[%clk 0:02:54]}  Bg4 {[%clk 0:02:55]} 7. Be3 {[%clk 0:02:49]}  Nc6 {[%clk 0:02:55]} 8. O-O {[%clk 0:02:44]}  e5 {[%clk 0:02:54]} 9. d5 {[%clk 0:02:43]}  Bxf3 {[%clk 0:02:48]} 10. Bxf3 {[%clk 0:02:38]}  Ne7 {[%clk 0:02:47]} 11. c5 {[%clk 0:02:30]}  Nd7 {[%clk 0:02:46]} 12. cxd6 {[%clk 0:02:23]}  cxd6 {[%clk 0:02:46]} 13. Nb5 {[%clk 0:02:21]}  f5 {[%clk 0:02:17]} 14. Nxd6 {[%clk 0:02:18]}  Nf6 {[%clk 0:02:17]} 15. Nxb7 {[%clk 0:02:12]}  Qb8 {[%clk 0:02:08]} 16. Qb3 {[%clk 0:02:07]}  fxe4 {[%clk 0:02:02]} 17. d6+ {[%clk 0:02:04]}  Ned5 {[%clk 0:02:03]} 18. Bxe4 {[%clk 0:02:00]}  Rf7 {[%clk 0:01:45]} 19. Bxd5 {[%clk 0:01:53]}  Nxd5 {[%clk 0:01:45]} 20. Qxd5 {[%clk 0:01:45]}  Qxb7 {[%clk 0:01:45]} 21. Qxb7 {[%clk 0:01:37]}  Rxb7 {[%clk 0:01:44]} 22. b3 {[%clk 0:01:37]}  Kf7 {[%clk 0:01:44]} 23. Rac1 {[%clk 0:01:33]}  Rd8 {[%clk 0:01:41]} 24. Rc7+ {[%clk 0:01:30]}  Rd7 {[%clk 0:01:41]} 25. Rfc1 {[%clk 0:01:22]}  Ke6 {[%clk 0:01:40]} 26. Rxb7 {[%clk 0:01:18]}  Rxb7 {[%clk 0:01:41]} 27. Rc7 {[%clk 0:01:17]}  Rxc7 {[%clk 0:01:39]} 28. dxc7 {[%clk 0:01:18]}  Kd7 {[%clk 0:01:40]} 29. Bxa7 {[%clk 0:01:17]}  Kxc7 {[%clk 0:01:41]} 30. Kf1 {[%clk 0:01:16]}  Kc6 {[%clk 0:01:38]} 31. Ke2 {[%clk 0:01:12]}  Kd5 {[%clk 0:01:36]} 32. a4 {[%clk 0:00:59]}  Bf8 {[%clk 0:01:34]} 33. a5 {[%clk 0:00:53]}  Bb4 {[%clk 0:01:34]} 34. a6 {[%clk 0:00:53]}  Kc6 {[%clk 0:01:35]} 35. Kd3 {[%clk 0:00:47]}  Kb5 {[%clk 0:01:34]} 36. Bb8 {[%clk 0:00:47]}  Kxa6 {[%clk 0:01:33]} 37. Bxe5 {[%clk 0:00:45]}  Kb5 {[%clk 0:01:33]} 38. f4 {[%clk 0:00:42]}  Bc5 {[%clk 0:01:33]} 39. Bc3 {[%clk 0:00:40]}  Bd6 {[%clk 0:01:31]} 40. Ke4 {[%clk 0:00:40]}  Bc7 {[%clk 0:01:30]} 41. g3 {[%clk 0:00:40]}  Kc5 {[%clk 0:01:30]} 42. h3 {[%clk 0:00:34]}  Bb8 {[%clk 0:01:29]} 43. g4 {[%clk 0:00:33]}  Kc6 {[%clk 0:01:27]} 44. f5 {[%clk 0:00:29]}  gxf5+ {[%clk 0:01:28]} 45. Kxf5 {[%clk 0:00:29]}  Kd7 {[%clk 0:01:29]} 46. g5 {[%clk 0:00:26]}  Ke8 {[%clk 0:01:27]} 47. h4 {[%clk 0:00:26]}  Kf7 {[%clk 0:01:28]} 48. h5 {[%clk 0:00:27]}  Bd6 {[%clk 0:01:28]} 49. g6+ {[%clk 0:00:26]}  hxg6+ {[%clk 0:01:29]} 50. hxg6+ {[%clk 0:00:27]}  Kg8 {[%clk 0:01:30]} 51. Ke6 {[%clk 0:00:26]}  Bc5 {[%clk 0:01:30]} 52. Kd5 {[%clk 0:00:26]}  Be3 {[%clk 0:01:30]} 53. Kc4 {[%clk 0:00:26]}  Bb6 {[%clk 0:01:30]} 54. b4 {[%clk 0:00:27]}  Bc7 {[%clk 0:01:30]} 55. b5 {[%clk 0:00:27]}  Bb6 {[%clk 0:01:30]} 56. Kd5 {[%clk 0:00:28]}  Ba5 {[%clk 0:01:31]} 57. Kc6 {[%clk 0:00:28]}  Bxc3 {[%clk 0:01:31]} 58. b6 {[%clk 0:00:21]}  Be5 {[%clk 0:01:31]} 59. b7 {[%clk 0:00:17]}  Kg7 {[%clk 0:01:30]} 60. Kd7 {[%clk 0:00:16]}  Kxg6 {[%clk 0:01:30]} 61. Kc8 {[%clk 0:00:16]}  Kf5 {[%clk 0:01:30]} 62. b8=Q {[%clk 0:00:17]}  Bxb8 {[%clk 0:01:31]} 1/2-1/2


[Site "https://www.chess.com"]

[Event "Titled Tuesday Blitz October 18 Late 2022"]
[White "Torres Boch, Jose Francisco"]
[Black "Turutin, Alexander"]
[WhiteFideId "2278383"]
[BlackFideId "4180623"]
[WhiteElo "2073"]
[BlackElo "2402"]
[Result "0-1"]
[Round "07"]
[TimeControl "180+1"]
[Date "2022.10.19"]
[WhiteClock "0:00:07"]
[BlackClock "0:01:04"]

1. e4 {[%clk 0:02:53]}  c6 {[%clk 0:02:59]} 2. d4 {[%clk 0:02:52]}  d5 {[%clk 0:02:59]} 3. Nd2 {[%clk 0:02:52]}  dxe4 {[%clk 0:02:59]} 4. Nxe4 {[%clk 0:02:53]}  Bf5 {[%clk 0:02:59]} 5. Ng3 {[%clk 0:02:53]}  Bg6 {[%clk 0:02:59]} 6. h4 {[%clk 0:02:54]}  h6 {[%clk 0:03:00]} 7. Nf3 {[%clk 0:02:54]}  Nd7 {[%clk 0:02:59]} 8. h5 {[%clk 0:02:54]}  Bh7 {[%clk 0:02:59]} 9. Bd3 {[%clk 0:02:55]}  Bxd3 {[%clk 0:03:00]} 10. Qxd3 {[%clk 0:02:55]}  e6 {[%clk 0:03:00]} 11. Bd2 {[%clk 0:02:55]}  Ngf6 {[%clk 0:03:00]} 12. O-O-O {[%clk 0:02:41]}  Be7 {[%clk 0:02:55]} 13. Kb1 {[%clk 0:02:38]}  Qb6 {[%clk 0:02:55]} 14. c4 {[%clk 0:02:28]}  Rd8 {[%clk 0:02:42]} 15. Bf4 {[%clk 0:02:19]}  O-O {[%clk 0:02:37]} 16. Qc2 {[%clk 0:02:10]}  Rfe8 {[%clk 0:02:31]} 17. Nf1 {[%clk 0:01:58]}  c5 {[%clk 0:02:27]} 18. d5 {[%clk 0:01:25]}  exd5 {[%clk 0:02:28]} 19. Ne3 {[%clk 0:01:24]}  d4 {[%clk 0:01:53]} 20. Nf5 {[%clk 0:01:24]}  Bf8 {[%clk 0:01:53]} 21. g4 {[%clk 0:01:21]}  Qc6 {[%clk 0:01:54]} 22. Nd2 {[%clk 0:01:00]}  d3 {[%clk 0:01:41]} 23. Qxd3 {[%clk 0:00:44]}  Ne5 {[%clk 0:01:40]} 24. Qc3 {[%clk 0:00:39]}  Ne4 {[%clk 0:01:28]} 25. Qc2 {[%clk 0:00:14]}  Nxf2 {[%clk 0:01:28]} 26. Rhf1 {[%clk 0:00:11]}  Nxd1 {[%clk 0:01:27]} 27. Rxd1 {[%clk 0:00:12]}  Nf3 {[%clk 0:01:10]} 28. a3 {[%clk 0:00:10]}  Nxd2+ {[%clk 0:01:09]} 29. Rxd2 {[%clk 0:00:09]}  Rxd2 {[%clk 0:01:08]} 30. Qxd2 {[%clk 0:00:09]}  Qe4+ {[%clk 0:01:08]} 31. Ka2 {[%clk 0:00:09]}  Qxc4+ {[%clk 0:01:08]} 32. Kb1 {[%clk 0:00:07]}  Re2 {[%clk 0:01:04]} 0-1


[Site "https://www.chess.com"]

[Event "Titled Tuesday Blitz October 18 Late 2022"]
[White "Vlassov, Nikolai"]
[Black "Carbone, Diego"]
[WhiteFideId "4103360"]
[BlackFideId "3002179"]
[WhiteElo "2324"]
[BlackElo "2243"]
[Result "0-1"]
[Round "07"]
[TimeControl "180+1"]
[Date "2022.10.19"]
[WhiteClock "0:00:47"]
[BlackClock "0:01:00"]

1. e4 {[%clk 0:03:00]}  e5 {[%clk 0:03:00]} 2. Bc4 {[%clk 0:03:00]}  Nf6 {[%clk 0:02:59]} 3. d3 {[%clk 0:03:00]}  c6 {[%clk 0:02:58]} 4. Nf3 {[%clk 0:03:00]}  d5 {[%clk 0:02:57]} 5. Bb3 {[%clk 0:03:00]}  Bb4+ {[%clk 0:02:57]} 6. c3 {[%clk 0:03:00]}  Bd6 {[%clk 0:02:57]} 7. Bg5 {[%clk 0:03:00]}  dxe4 {[%clk 0:02:26]} 8. dxe4 {[%clk 0:03:00]}  h6 {[%clk 0:02:26]} 9. Bh4 {[%clk 0:02:59]}  O-O {[%clk 0:02:24]} 10. Nbd2 {[%clk 0:02:59]}  a5 {[%clk 0:02:21]} 11. h3 {[%clk 0:02:57]}  b5 {[%clk 0:02:17]} 12. a4 {[%clk 0:02:55]}  Ba6 {[%clk 0:02:14]} 13. axb5 {[%clk 0:02:53]}  cxb5 {[%clk 0:02:15]} 14. O-O {[%clk 0:02:47]}  Nbd7 {[%clk 0:02:11]} 15. Re1 {[%clk 0:02:41]}  Qc7 {[%clk 0:02:09]} 16. Nf1 {[%clk 0:02:37]}  a4 {[%clk 0:02:09]} 17. Ba2 {[%clk 0:02:35]}  Rfe8 {[%clk 0:02:05]} 18. Ng3 {[%clk 0:02:31]}  Bf8 {[%clk 0:01:59]} 19. Nf5 {[%clk 0:02:23]}  g6 {[%clk 0:01:56]} 20. Ne3 {[%clk 0:02:24]}  Bb7 {[%clk 0:01:53]} 21. Bd5 {[%clk 0:02:11]}  Nxd5 {[%clk 0:01:50]} 22. Nxd5 {[%clk 0:02:12]}  Qc5 {[%clk 0:01:50]} 23. Qd3 {[%clk 0:01:48]}  Bg7 {[%clk 0:01:44]} 24. Rad1 {[%clk 0:01:47]}  a3 {[%clk 0:01:37]} 25. bxa3 {[%clk 0:01:40]}  Rxa3 {[%clk 0:01:37]} 26. Ne7+ {[%clk 0:01:37]}  Rxe7 {[%clk 0:01:35]} 27. Bxe7 {[%clk 0:01:37]}  Qxe7 {[%clk 0:01:36]} 28. Qxd7 {[%clk 0:01:37]}  Qxd7 {[%clk 0:01:33]} 29. Rxd7 {[%clk 0:01:37]}  Bc6 {[%clk 0:01:34]} 30. Rd8+ {[%clk 0:01:32]}  Kh7 {[%clk 0:01:33]} 31. Rc1 {[%clk 0:01:28]}  Bxe4 {[%clk 0:01:31]} 32. Rd7 {[%clk 0:01:26]}  Kg8 {[%clk 0:01:28]} 33. Rd8+ {[%clk 0:01:18]}  Kh7 {[%clk 0:01:27]} 34. Rb8 {[%clk 0:01:18]}  Bd3 {[%clk 0:01:25]} 35. Rb7 {[%clk 0:01:17]}  Kg8 {[%clk 0:01:23]} 36. Ne1 {[%clk 0:01:14]}  Bc4 {[%clk 0:01:20]} 37. f3 {[%clk 0:01:12]}  Bf6 {[%clk 0:01:17]} 38. Kf2 {[%clk 0:01:07]}  Bg5 {[%clk 0:01:17]} 39. Rc2 {[%clk 0:01:05]}  Ra1 {[%clk 0:01:16]} 40. g3 {[%clk 0:01:04]}  Kg7 {[%clk 0:01:13]} 41. h4 {[%clk 0:01:04]}  Bf6 {[%clk 0:01:10]} 42. Ng2 {[%clk 0:01:00]}  Rf1+ {[%clk 0:01:05]} 43. Ke3 {[%clk 0:01:00]}  Bd5 {[%clk 0:01:02]} 44. Rf2 {[%clk 0:00:48]}  Rxf2 {[%clk 0:01:00]} 45. Kxf2 {[%clk 0:00:47]}  Bxb7 {[%clk 0:01:00]} 0-1


[Site "https://www.chess.com"]

[Event "Titled Tuesday Blitz October 18 Late 2022"]
[White "Vujic, Mihailo"]
[Black "Vusatiuk, Vladimir"]
[WhiteFideId "918873"]
[BlackFideId "14118610"]
[WhiteElo "2256"]
[BlackElo "2208"]
[Result "1/2-1/2"]
[Round "07"]
[TimeControl "180+1"]
[Date "2022.10.19"]
[WhiteClock "0:00:05"]
[BlackClock "0:00:20"]

1. e4 {[%clk 0:02:59]}  e5 {[%clk 0:02:59]} 2. Bc4 {[%clk 0:02:58]}  Nf6 {[%clk 0:02:59]} 3. d3 {[%clk 0:02:56]}  c6 {[%clk 0:02:59]} 4. Nf3 {[%clk 0:02:48]}  d5 {[%clk 0:02:59]} 5. Bb3 {[%clk 0:02:47]}  Bd6 {[%clk 0:02:55]} 6. Qe2 {[%clk 0:02:45]}  O-O {[%clk 0:02:50]} 7. h3 {[%clk 0:02:37]}  a5 {[%clk 0:02:44]} 8. a3 {[%clk 0:02:34]}  Nbd7 {[%clk 0:02:41]} 9. Nc3 {[%clk 0:02:33]}  Nc5 {[%clk 0:02:39]} 10. Ba2 {[%clk 0:02:30]}  dxe4 {[%clk 0:02:21]} 11. Nxe4 {[%clk 0:02:23]}  Nfxe4 {[%clk 0:02:20]} 12. dxe4 {[%clk 0:02:22]}  Be6 {[%clk 0:02:20]} 13. Bxe6 {[%clk 0:02:20]}  Nxe6 {[%clk 0:02:21]} 14. Be3 {[%clk 0:02:19]}  b5 {[%clk 0:02:05]} 15. O-O {[%clk 0:02:16]}  Qf6 {[%clk 0:02:04]} 16. Rad1 {[%clk 0:02:14]}  Rfd8 {[%clk 0:02:03]} 17. Rd3 {[%clk 0:02:08]}  a4 {[%clk 0:01:52]} 18. Rfd1 {[%clk 0:02:06]}  Bc7 {[%clk 0:01:50]} 19. Nh2 {[%clk 0:02:01]}  h6 {[%clk 0:01:45]} 20. Qh5 {[%clk 0:01:59]}  Rxd3 {[%clk 0:01:39]} 21. Rxd3 {[%clk 0:01:57]}  Rd8 {[%clk 0:01:39]} 22. Ng4 {[%clk 0:01:56]}  Qe7 {[%clk 0:01:37]} 23. Nxe5 {[%clk 0:01:46]}  Bxe5 {[%clk 0:01:15]} 24. Qxe5 {[%clk 0:01:45]}  Rxd3 {[%clk 0:01:08]} 25. cxd3 {[%clk 0:01:44]}  Kh7 {[%clk 0:01:07]} 26. f4 {[%clk 0:01:39]}  b4 {[%clk 0:01:05]} 27. f5 {[%clk 0:01:37]}  bxa3 {[%clk 0:01:04]} 28. bxa3 {[%clk 0:01:32]}  Qxa3 {[%clk 0:00:43]} 29. fxe6 {[%clk 0:01:31]}  fxe6 {[%clk 0:00:44]} 30. Qxe6 {[%clk 0:00:55]}  Qxd3 {[%clk 0:00:43]} 31. Qf5+ {[%clk 0:00:45]}  Kg8 {[%clk 0:00:43]} 32. Bc5 {[%clk 0:00:30]}  a3 {[%clk 0:00:36]} 33. Qe6+ {[%clk 0:00:22]}  Kh7 {[%clk 0:00:31]} 34. Bf8 {[%clk 0:00:17]}  Qb1+ {[%clk 0:00:25]} 35. Kh2 {[%clk 0:00:15]}  a2 {[%clk 0:00:26]} 36. Qf7 {[%clk 0:00:11]}  Qb2 {[%clk 0:00:23]} 37. Bxg7 {[%clk 0:00:09]}  Qxg7 {[%clk 0:00:18]} 38. Qxa2 {[%clk 0:00:08]}  Qe5+ {[%clk 0:00:18]} 39. g3 {[%clk 0:00:07]}  Qxe4 {[%clk 0:00:18]} 40. Qf7+ {[%clk 0:00:06]}  Kh8 {[%clk 0:00:18]} 41. Qf8+ {[%clk 0:00:05]}  Kh7 {[%clk 0:00:19]} 42. Qf7+ {[%clk 0:00:05]}  Kh8 {[%clk 0:00:20]} 43. Qf8+ {[%clk 0:00:04]}  Kh7 {[%clk 0:00:20]} 44. Qf7+ {[%clk 0:00:05]} 1/2-1/2


[Site "https://www.chess.com"]